bitfinex/quotes_BTCUSD_20250714
["timestamp","ask_amount","ask_price","bid_price","bid_amount"]
[1752494575493,0.00251146,121450.0,121440.0,7.20111092]
[1752494577708,0.00251146,121450.0,121440.0,7.61350303]
[1752494577922,0.00251146,121450.0,121440.0,7.74238303]
[1752494578381,1e-08,121450.0,121440.0,7.71909528]
[1752494578605,1e-08,121450.0,121440.0,7.74238303]
[1752494579078,0.0002,121460.0,121450.0,1.29940821]
[1752494579290,0.0002,121460.0,121450.0,7.00113532]
[1752494579716,0.0002,121460.0,121450.0,2.00113532]
[1752494579920,0.0002,121460.0,121450.0,7.02580132]
[1752494580374,0.0002,121460.0,121450.0,7.02780132]
[1752494581210,0.0002,121460.0,121450.0,6.89892132]
[1752494581423,0.0002,121460.0,121450.0,1.93182132]
[1752494581635,0.002,121470.0,121460.0,1.39370487]
[1752494581844,0.002,121470.0,121460.0,6.60393198]
[1752494582056,0.002,121470.0,121460.0,6.65751973]
[1752494582236,0.002,121470.0,121460.0,6.54995481]
[1752494582477,0.002,121470.0,121460.0,6.67883481]
[1752494583149,0.002,121470.0,121460.0,6.64853481]
[1752494583363,0.002,121470.0,121460.0,6.67319881]
[1752494584224,0.002,121470.0,121460.0,6.65188373]
[1752494584845,0.002,121470.0,121460.0,7.14338373]
[1752494586652,0.002,121470.0,121460.0,7.01450373]
[1752494586858,0.002,121470.0,121460.0,7.21114479]
[1752494587977,0.002,121470.0,121460.0,7.24304479]
[1752494588666,0.002,121470.0,121460.0,7.11416479]
[1752494588891,0.002,121470.0,121460.0,7.00608732]
[1752494589105,0.002,121470.0,121460.0,6.98279957]
[1752494589315,0.002,121470.0,121460.0,6.87902457]
[1752494589763,0.002,121470.0,121460.0,7.22153957]
[1752494590402,0.002,121470.0,121460.0,7.27612732]
[1752494590841,0.002,121470.0,121460.0,7.40060632]
[1752494591441,0.002,121470.0,121460.0,7.43180632]
[1752494591691,0.002,121470.0,121460.0,2.24034479]
[1752494591871,0.002,121470.0,121460.0,7.24034479]
[1752494592748,0.002,121470.0,121460.0,7.24134479]
[1752494593177,0.0002,121480.0,121460.0,7.22387881]
[1752494593393,0.0003534,121480.0,121470.0,6.67107882]
[1752494593623,0.0003534,121480.0,121470.0,6.6690207]
[1752494594049,0.0634534,121480.0,121470.0,6.6690207]
[1752494594295,0.0634534,121480.0,121470.0,6.64573295]
[1752494594493,0.0634534,121480.0,121470.0,6.45391639]
[1752494595147,0.0634534,121480.0,121470.0,4.58322895]
[1752494595586,0.0634534,121480.0,121470.0,4.30534795]
[1752494595782,0.0634534,121480.0,121470.0,4.95119395]
[1752494595994,0.0634534,121480.0,121470.0,4.95219395]
[1752494596839,0.0634534,121480.0,121470.0,6.67668269]
[1752494597200,0.0634534,121480.0,121470.0,6.65275069]
[1752494597608,0.0634534,121480.0,121470.0,6.55745569]
[1752494597817,0.0634534,121480.0,121470.0,6.54594669]
[1752494598282,0.0634534,121480.0,121470.0,6.74322669]
[1752494598831,0.0634534,121480.0,121470.0,6.68829069]
[1752494600004,0.0634534,121480.0,121470.0,6.62568069]
[1752494600457,0.0634534,121480.0,121470.0,6.60093969]
[1752494600677,0.0624534,121480.0,121470.0,6.53143869]
[1752494600922,0.0624534,121480.0,121470.0,2.36319669]
[1752494601150,0.0624534,121480.0,121470.0,6.18248169]
[1752494601464,0.06204303,121480.0,121470.0,6.18248169]
[1752494601901,0.06204303,121480.0,121470.0,6.16794084]
[1752494602152,0.06204303,121480.0,121470.0,6.35996469]
[1752494603019,0.06204303,121480.0,121470.0,2.36319669]
[1752494603507,0.06204303,121480.0,121470.0,7.36319669]
[1752494604421,0.06204303,121480.0,121470.0,7.27663469]
[1752494605118,0.06204303,121480.0,121470.0,6.65719069]
[1752494606191,0.06204303,121480.0,121470.0,7.35594769]
[1752494607122,0.06204303,121480.0,121470.0,7.36319669]
[1752494608192,0.06204303,121480.0,121470.0,2.36319669]
[1752494608404,0.06204303,121480.0,121470.0,7.36319669]
[1752494609247,0.0673,121490.0,121480.0,5.25454674]
[1752494609453,0.0673,121490.0,121480.0,6.17003795]
[1752494609663,0.0673,121490.0,121480.0,6.32260125]
[1752494610496,0.0673,121490.0,121480.0,6.33214925]
[1752494610681,0.0673,121490.0,121480.0,6.48728288]
[1752494610890,0.0673,121490.0,121480.0,6.47569788]
[1752494611310,0.0673,121490.0,121480.0,6.36239873]
[1752494611526,1e-08,121490.0,121480.0,7.39370577]
[1752494611747,0.0663,121510.0,121500.0,0.52929958]
[1752494611968,0.0663,121510.0,121500.0,3.64187459]
[1752494612186,0.0663,121510.0,121500.0,1.25645359]
[1752494612395,0.0663,121510.0,121500.0,1.12761359]
[1752494612610,0.0663,121510.0,121500.0,1.25645359]
[1752494613029,0.0663,121510.0,121500.0,1.12770396]
[1752494613240,0.0663,121510.0,121500.0,0.98532811]
[1752494613460,0.0663,121510.0,121500.0,1.31908111]
[1752494613666,0.0683,121510.0,121500.0,1.31908111]
[1752494614289,0.0683,121510.0,121500.0,1.33277371]
[1752494615360,0.0683,121510.0,121500.0,1.26538271]
[1752494616786,0.0683,121510.0,121500.0,3.85770056]
[1752494617000,0.0683,121510.0,121500.0,3.11129256]
[1752494617618,0.0683,121510.0,121500.0,2.99944956]
[1752494617827,0.0683,121510.0,121500.0,1.93755851]
[1752494618051,0.0683,121510.0,121500.0,2.58798061]
[1752494618270,0.0022,121530.0,121520.0,0.59318928]
[1752494618495,0.00015335,121530.0,121520.0,7.10037025]
[1752494618725,0.00015335,121530.0,121520.0,7.12400318]
[1752494618961,0.0022,121550.0,121540.0,0.02468241]
[1752494619168,0.0022,121550.0,121540.0,5.28210066]
[1752494619378,0.5018463,121560.0,121550.0,0.59314256]
[1752494619379,0.5002,121560.0,121550.0,0.59314256]
[1752494619587,0.5018463,121560.0,121550.0,2.75965794]
[1752494620446,0.5018463,121560.0,121550.0,2.78329087]
[1752494620652,0.5018463,121560.0,121550.0,2.78338124]
[1752494620869,0.5018463,121560.0,121550.0,2.73400124]
[1752494621303,0.0022,121570.0,121560.0,3.19400105]
[1752494621530,0.00235329,121570.0,121560.0,4.46189543]
[1752494621759,0.0327,121590.0,121580.0,0.34]
[1752494621979,0.06595716,121590.0,121580.0,0.55062711]
[1752494622209,0.0814961,121590.0,121580.0,0.42134711]
[1752494622420,0.0814961,121590.0,121580.0,0.55058711]
[1752494622633,0.0814961,121590.0,121580.0,0.55881207]
[1752494622858,0.0814961,121590.0,121580.0,0.55890251]
[1752494623078,0.0814961,121590.0,121580.0,0.42143748]
[1752494623298,0.0814961,121590.0,121580.0,0.34009037]
[1752494623545,0.0814961,121590.0,121580.0,0.46957037]
[1752494623778,0.0824961,121590.0,121580.0,0.46957037]
[1752494624432,0.0824961,121590.0,121580.0,0.50459111]
[1752494624642,0.0824961,121590.0,121580.0,0.52104097]
[1752494624901,0.0824961,121590.0,121580.0,0.34009037]
[1752494625114,0.09071985,121590.0,121580.0,0.46961037]
[1752494625326,0.27987952,121590.0,121580.0,0.34009037]
[1752494625549,0.27887952,121590.0,121580.0,0.34009037]
[1752494625767,0.26243182,121590.0,121580.0,0.34009037]
[1752494625980,0.26243182,121590.0,121580.0,0.46957037]
[1752494626199,0.26643182,121590.0,121580.0,0.34009037]
[1752494626411,0.26643182,121590.0,121580.0,0.46957037]
[1752494628017,0.11839278,121590.0,121580.0,0.46957037]
[1752494628218,0.28287999,121590.0,121580.0,0.12957037]
[1752494628414,0.11016842,121590.0,121580.0,0.12957037]
[1752494629608,0.27465604,121590.0,121580.0,0.12941037]
[1752494630255,0.26643189,121590.0,121580.0,9.037e-05]
[1752494630470,0.25820767,121590.0,121580.0,0.12941037]
[1752494630872,0.26643182,121590.0,121580.0,9.037e-05]
[1752494631077,0.26643182,121590.0,121580.0,0.12937037]
[1752494631488,0.26643182,121590.0,121580.0,9.037e-05]
[1752494631692,0.26643182,121590.0,121580.0,0.12933037]
[1752494633391,0.26643182,121590.0,121580.0,9.037e-05]
[1752494634055,0.92320709,121590.0,121580.0,9.037e-05]
[1752494635127,0.60643182,121590.0,121580.0,9.037e-05]
[1752494640094,0.26643182,121590.0,121580.0,9.037e-05]
[1752494640339,0.6645542,121590.0,121580.0,9.037e-05]
[1752494640720,1.2625942,121590.0,121580.0,9.037e-05]
[1752494640924,1.1335142,121590.0,121580.0,9.037e-05]
[1752494641136,1.14129637,121590.0,121580.0,9.037e-05]
[1752494642328,0.47673893,121590.0,121580.0,9.037e-05]
[1752494642537,0.80129637,121590.0,121580.0,9.037e-05]
[1752494642923,0.82595137,121590.0,121580.0,9.037e-05]
[1752494644160,0.50139393,121590.0,121580.0,9.037e-05]
[1752494644513,0.82595137,121590.0,121580.0,9.037e-05]
[1752494645154,0.26356534,121560.0,121550.0,0.06507769]
[1752494645365,0.58812278,121560.0,121550.0,0.06507769]
[1752494646026,0.17276827,121550.0,121540.0,0.002]
[1752494646244,0.57851095,121550.0,121540.0,0.002]
[1752494647311,0.83615095,121550.0,121540.0,0.00215329]
[1752494647521,0.84115095,121550.0,121540.0,0.00215329]
[1752494648195,0.92449806,121550.0,121540.0,0.00215329]
[1752494648861,0.34230062,121550.0,121540.0,0.00215329]
[1752494649136,0.36696362,121550.0,121540.0,0.00215329]
[1752494649364,0.81286656,121550.0,121540.0,0.00215329]
[1752494649599,0.00822808,121530.0,121520.0,0.002]
[1752494649818,0.70827482,121530.0,121520.0,0.002]
[1752494650502,0.29340841,121530.0,121500.0,0.14007769]
[1752494650754,0.002,121510.0,121500.0,0.75148307]
[1752494650975,0.002,121510.0,121500.0,1.27732152]
[1752494651421,0.002,121510.0,121500.0,2.82908052]
[1752494651642,0.002,121510.0,121500.0,1.73031552]
[1752494651850,0.002,121510.0,121500.0,1.69760552]
[1752494652269,0.002,121530.0,121520.0,0.002]
[1752494652479,0.002,121530.0,121520.0,0.13084]
[1752494652688,0.01022781,121530.0,121520.0,0.12884]
[1752494652908,0.002,121530.0,121520.0,0.52090294]
[1752494653112,0.01022781,121530.0,121520.0,0.86090294]
[1752494653326,0.002,121530.0,121520.0,0.86090294]
[1752494653545,0.002,121530.0,121520.0,0.86590294]
[1752494653758,0.01022794,121530.0,121520.0,0.86590294]
[1752494653970,0.01022781,121530.0,121520.0,0.86590294]
[1752494654191,0.002,121530.0,121520.0,0.86590294]
[1752494657694,0.002,121530.0,121520.0,0.54884]
[1752494657914,0.002,121530.0,121520.0,0.86590294]
[1752494658366,0.002,121530.0,121520.0,0.54884]
[1752494658575,0.002,121530.0,121520.0,0.86590294]
[1752494658780,0.002,121530.0,121520.0,0.89018823]
[1752494659686,0.00195063,121530.0,121520.0,0.89018823]
[1752494662479,0.00195063,121530.0,121520.0,0.86590294]
[1752494663530,0.00195063,121530.0,121520.0,0.86594294]
[1752494663740,0.01017857,121530.0,121520.0,0.42]
[1752494663971,0.0101785,121530.0,121520.0,0.79094294]
[1752494664201,0.01840651,121530.0,121520.0,0.86594294]
[1752494664652,0.0101785,121530.0,121520.0,0.79094294]
[1752494664881,0.00195063,121530.0,121520.0,0.86594294]
[1752494665346,0.01840651,121530.0,121520.0,0.86594294]
[1752494665568,0.01840651,121530.0,121520.0,0.66206294]
[1752494665794,0.0101785,121530.0,121520.0,0.86594294]
[1752494666016,0.06646287,121530.0,121520.0,0.86594294]
[1752494666245,0.05000644,121530.0,121520.0,0.86594294]
[1752494666488,0.05823445,121530.0,121520.0,0.86594294]
[1752494666709,0.05000644,121530.0,121520.0,0.86594294]
[1752494667126,0.0417785,121530.0,121520.0,0.86594294]
[1752494667337,0.01017844,121530.0,121520.0,0.86594294]
[1752494667765,0.01840631,121530.0,121520.0,0.86594294]
[1752494667981,0.02663425,121530.0,121520.0,0.86594294]
[1752494668371,0.02663425,121530.0,121520.0,0.79094294]
[1752494668640,0.02663425,121530.0,121520.0,0.86594294]
[1752494668859,0.01840631,121530.0,121520.0,0.86594294]
[1752494669039,0.01017844,121530.0,121520.0,0.86594294]
[1752494669484,0.01017844,121530.0,121520.0,0.79094294]
[1752494669715,0.05050645,121530.0,121520.0,0.86594294]
[1752494670161,0.05050638,121530.0,121520.0,0.86594294]
[1752494670587,0.04227844,121530.0,121520.0,0.86594294]
[1752494670827,0.05050638,121530.0,121520.0,0.86594294]
[1752494671036,0.05050638,121530.0,121520.0,0.87354691]
[1752494671489,0.05873446,121530.0,121520.0,0.87354691]
[1752494671703,0.05050638,121530.0,121520.0,0.87354691]
[1752494672679,0.05873439,121530.0,121520.0,0.87354691]
[1752494673121,0.0669626,121530.0,121520.0,0.87354691]
[1752494673336,0.06696254,121530.0,121520.0,0.87354691]
[1752494673530,0.06696254,121530.0,121520.0,0.79854691]
[1752494673786,0.06696254,121530.0,121520.0,0.87354691]
[1752494674004,0.05873439,121530.0,121520.0,0.87354691]
[1752494674208,0.06696254,121530.0,121520.0,0.87354691]
[1752494675098,0.05050638,121530.0,121520.0,0.87354691]
[1752494675543,0.05873446,121530.0,121520.0,0.87354691]
[1752494675760,0.06696267,121530.0,121520.0,0.87354691]
[1752494676017,0.05873446,121530.0,121520.0,0.84784691]
[1752494676266,0.05050638,121530.0,121520.0,0.87354691]
[1752494676472,0.05873446,121530.0,121520.0,0.87354691]
[1752494677093,0.06696267,121530.0,121520.0,0.54888]
[1752494677340,0.06696267,121530.0,121520.0,0.87354691]
[1752494677559,0.05873446,121530.0,121520.0,0.87354691]
[1752494678042,0.06696267,121530.0,121520.0,0.87354691]
[1752494678259,0.07519102,121530.0,121520.0,0.79854691]
[1752494678475,0.09896267,121530.0,121520.0,0.87354691]
[1752494678913,0.09896267,121530.0,121520.0,0.54888]
[1752494679143,0.24707553,121530.0,121520.0,0.345]
[1752494679806,0.57174244,121530.0,121520.0,0.345]
[1752494680023,0.65308955,121530.0,121520.0,0.005]
[1752494681355,0.24265456,121510.0,121500.0,0.34015335]
[1752494681585,0.50033456,121510.0,121500.0,0.34015335]
[1752494682576,0.50033456,121510.0,121500.0,0.66482026]
[1752494682786,0.49210513,121510.0,121500.0,0.66482026]
[1752494682992,0.49210513,121510.0,121500.0,0.34015335]
[1752494684305,0.23442513,121510.0,121500.0,0.66482026]
[1752494684483,0.26653149,121530.0,121500.0,1.01126307]
[1752494684787,0.06886274,121530.0,121520.0,0.32466691]
[1752494684947,0.04409102,121530.0,121520.0,0.32466691]
[1752494685162,0.04309102,121530.0,121520.0,0.39397713]
[1752494685364,0.03486274,121530.0,121520.0,0.39397713]
[1752494685791,0.03486321,121530.0,121520.0,0.39397713]
[1752494685986,0.04309163,121530.0,121520.0,0.39397713]
[1752494686221,0.03486321,121530.0,121520.0,0.39397713]
[1752494686596,0.02663493,121530.0,121520.0,0.39397713]
[1752494686784,0.02663487,121530.0,121520.0,0.39397713]
[1752494687031,0.03486315,121530.0,121520.0,0.39397713]
[1752494687232,0.01940645,121530.0,121520.0,0.39397713]
[1752494687587,0.02763453,121530.0,121520.0,0.39397713]
[1752494688216,0.00295063,121530.0,121520.0,0.71864404]
[1752494688431,0.00295063,121530.0,121520.0,1.18748404]
[1752494688860,0.00295063,121530.0,121520.0,0.87104622]
[1752494689068,0.00295063,121530.0,121520.0,0.73397713]
[1752494689248,0.00295063,121530.0,121520.0,0.93781713]
[1752494690141,0.0111785,121530.0,121520.0,0.93781713]
[1752494690370,0.00295063,121530.0,121520.0,0.94604622]
[1752494690844,0.00295063,121530.0,121520.0,0.93781713]
[1752494691577,0.0111785,121530.0,121520.0,0.48431022]
[1752494691800,0.01940651,121530.0,121520.0,0.93781713]
[1752494692225,0.0111785,121530.0,121520.0,0.80897713]
[1752494692494,0.18397492,121530.0,121520.0,0.93777713]
[1752494692728,0.2493754,121530.0,121520.0,0.415]
[1752494692954,0.2493754,121530.0,121520.0,0.4688]
[1752494693161,0.2493754,121530.0,121520.0,0.5438]
[1752494694063,0.2493754,121530.0,121520.0,0.415]
[1752494694303,0.2493754,121530.0,121520.0,0.8136336]
[1752494694529,0.2493754,121530.0,121520.0,0.9424336]
[1752494694981,0.08480658,121530.0,121520.0,0.8136336]
[1752494695200,0.26583169,121530.0,121520.0,0.61776669]
[1752494695413,0.26583169,121530.0,121520.0,0.54276669]
[1752494695656,0.26583169,121530.0,121520.0,0.61776669]
[1752494696101,0.25760327,121530.0,121520.0,0.61776669]
[1752494696316,0.09303486,121530.0,121520.0,0.48896669]
[1752494696530,0.10126328,121530.0,121520.0,0.61776669]
[1752494696856,0.09303486,121530.0,121520.0,0.61776669]
[1752494697273,0.09303486,121530.0,121520.0,0.93483085]
[1752494697274,0.02763479,121530.0,121520.0,0.93483085]
[1752494697467,0.00295063,121530.0,121520.0,0.97884184]
[1752494697673,0.00295063,121530.0,121520.0,1.12409955]
[1752494697884,0.00295063,121530.0,121520.0,0.97061281]
[1752494698085,0.00295063,121530.0,121520.0,0.93483085]
[1752494698483,0.01117844,121530.0,121520.0,0.93483085]
[1752494698957,0.00295063,121530.0,121520.0,0.95128897]
[1752494699257,0.00295063,121530.0,121520.0,1.11587093]
[1752494699865,0.00295063,121530.0,121520.0,1.13232864]
[1752494700353,0.00295063,121530.0,121520.0,1.12409982]
[1752494700760,0.02763466,121530.0,121520.0,1.11587093]
[1752494701201,0.02763466,121530.0,121520.0,1.12409989]
[1752494701415,0.0276346,121530.0,121520.0,1.13232878]
[1752494701972,0.20043129,121530.0,121520.0,0.93483085]
[1752494702212,0.20043129,121530.0,121520.0,0.80603085]
[1752494702452,0.20043129,121530.0,121520.0,0.93483085]
[1752494702693,0.0276346,121530.0,121520.0,1.11587073]
[1752494702926,0.02673439,121530.0,121520.0,1.02027073]
[1752494703188,0.02673439,121530.0,121520.0,1.17274184]
[1752494703437,0.0349626,121530.0,121520.0,1.13954184]
[1752494703687,0.0349626,121530.0,121520.0,1.10764184]
[1752494703891,0.04319095,121530.0,121520.0,0.93483085]
[1752494704493,0.04319088,121530.0,121520.0,0.94305994]
[1752494704727,0.01850631,121530.0,121520.0,1.14388295]
[1752494704941,0.01850631,121530.0,121520.0,1.1521117]
[1752494705152,0.02673425,121530.0,121520.0,1.14388295]
[1752494705364,0.02673425,121530.0,121520.0,1.20738295]
[1752494705786,0.03496233,121530.0,121520.0,1.19915413]
[1752494706679,0.01850631,121530.0,121520.0,1.19915413]
[1752494706913,0.02673432,121530.0,121520.0,1.20738295]
[1752494707143,0.03496247,121530.0,121520.0,1.19915413]
[1752494707376,0.02673432,121530.0,121520.0,1.19915413]
[1752494707605,0.02673432,121530.0,121520.0,1.16815861]
[1752494707606,0.00205063,121530.0,121520.0,1.16815861]
[1752494708097,0.00205063,121530.0,121520.0,1.29691861]
[1752494708627,0.00105063,121530.0,121520.0,1.29691861]
[1752494708836,0.00205063,121530.0,121520.0,1.29691861]
[1752494709285,0.00105063,121530.0,121520.0,1.29691861]
[1752494709517,0.00105063,121530.0,121520.0,1.29991861]
[1752494710891,0.00105063,121530.0,121520.0,1.17115861]
[1752494711105,0.00105063,121530.0,121520.0,1.29991861]
[1752494714240,0.00105063,121530.0,121520.0,1.22491861]
[1752494714455,0.00105063,121530.0,121520.0,1.29991861]
[1752494714682,0.0092785,121530.0,121520.0,1.29991861]
[1752494714906,0.00105063,121530.0,121520.0,1.29991861]
[1752494715612,0.00927844,121530.0,121520.0,1.29991861]
[1752494716066,0.00927844,121530.0,121520.0,1.12260124]
[1752494716280,0.01750631,121530.0,121520.0,1.16141855]
[1752494716494,0.01750631,121530.0,121520.0,1.23641855]
[1752494716701,0.02573432,121530.0,121520.0,1.23641855]
[1752494717032,0.02573432,121530.0,121520.0,1.56855035]
[1752494717276,0.02573432,121530.0,121520.0,1.49355035]
[1752494717512,0.01750631,121530.0,121520.0,1.56855035]
[1752494717742,0.01750631,121530.0,121520.0,1.54255035]
[1752494718267,0.01750631,121530.0,121520.0,1.41379035]
[1752494718468,0.00927844,121530.0,121520.0,1.46751035]
[1752494718892,0.01750645,121530.0,121520.0,1.54251035]
[1752494719097,0.00927844,121530.0,121520.0,1.54251035]
[1752494719507,0.00105063,121530.0,121520.0,1.54251035]
[1752494720035,0.00105063,121530.0,121520.0,1.52961035]
[1752494720248,0.00105063,121530.0,121520.0,1.60461035]
[1752494720459,0.00105063,121530.0,121520.0,1.52961035]
[1752494720669,0.00105063,121530.0,121520.0,1.60461035]
[1752494720869,0.00105063,121530.0,121520.0,1.57421035]
[1752494721524,0.00105063,121530.0,121520.0,1.47869035]
[1752494721735,0.00105063,121530.0,121520.0,1.60741035]
[1752494722587,0.00105063,121530.0,121520.0,1.59585604]
[1752494723571,0.00105063,121530.0,121520.0,1.52085604]
[1752494723775,0.00105063,121530.0,121520.0,1.59585604]
[1752494726098,0.00105063,121530.0,121520.0,1.46713604]
[1752494726297,0.00105063,121530.0,121520.0,2.20675289]
[1752494726673,0.00105063,121530.0,121520.0,5.97436374]
[1752494727083,0.00105063,121530.0,121520.0,6.04901874]
[1752494727290,0.00105063,121530.0,121520.0,6.04601874]
[1752494727498,0.00105063,121530.0,121520.0,7.05594987]
[1752494727708,0.00105063,121530.0,121520.0,1.17367193]
[1752494727924,0.00927844,121530.0,121520.0,0.66158407]
[1752494728127,0.00105063,121530.0,121520.0,1.13131976]
[1752494728343,0.00105063,121530.0,121520.0,1.01086838]
[1752494728546,0.00105063,121530.0,121520.0,1.46414636]
[1752494728750,0.00105063,121530.0,121520.0,1.33546636]
[1752494728971,0.00105063,121530.0,121520.0,1.46514636]
[1752494729210,0.00105063,121530.0,121520.0,1.33646636]
[1752494729434,0.00105063,121530.0,121520.0,2.01212708]
[1752494729680,0.00105063,121530.0,121520.0,1.98683121]
[1752494730155,0.0092785,121530.0,121520.0,0.42200211]
[1752494730377,0.0403785,121530.0,121520.0,1.01086845]
[1752494730592,0.04860651,121530.0,121520.0,1.17984009]
[1752494730830,0.04860644,121530.0,121520.0,1.17984009]
[1752494731051,0.04860644,121530.0,121520.0,1.09023147]
[1752494731294,0.05683459,121530.0,121520.0,1.22914016]
[1752494731536,0.04860644,121530.0,121520.0,1.23536878]
[1752494731873,0.05060644,121530.0,121520.0,1.23536878]
[1752494732080,0.05683452,121530.0,121520.0,1.22714016]
[1752494732285,0.06506273,121530.0,121520.0,1.23436891]
[1752494732499,0.01645873,121510.0,121500.0,0.37022747]
[1752494732720,0.24355198,121520.0,121500.0,0.8511727]
[1752494732933,0.24355198,121520.0,121510.0,0.39959798]
[1752494733140,0.24355198,121520.0,121510.0,0.73959798]
[1752494733314,0.24355198,121520.0,121510.0,0.86827798]
[1752494733527,0.07072855,121520.0,121510.0,0.92065268]
[1752494733745,0.07895703,121520.0,121510.0,1.04933268]
[1752494733960,0.05528572,121520.0,121510.0,0.92065268]
[1752494734165,0.2280965,121520.0,121510.0,0.92065275]
[1752494734373,0.22809643,121520.0,121510.0,0.91242318]
[1752494734588,0.20353162,121530.0,121520.0,0.415]
[1752494734809,0.25227567,121530.0,121520.0,0.34]
[1752494735259,0.25227567,121530.0,121520.0,0.79327798]
[1752494735491,0.25227567,121530.0,121520.0,0.86827798]
[1752494735958,0.25127567,121530.0,121520.0,0.86827798]
[1752494736181,0.25127567,121530.0,121520.0,0.73959798]
[1752494736405,0.24727567,121530.0,121520.0,0.86827798]
[1752494736876,0.24727567,121530.0,121520.0,0.73959798]
[1752494737103,0.26241377,121510.0,121500.0,0.27239335]
[1752494737332,0.24595497,121510.0,121500.0,0.42699066]
[1752494737577,0.24595497,121510.0,121500.0,0.55567066]
[1752494737818,0.24595497,121510.0,121500.0,0.57091933]
[1752494738042,0.24595497,121510.0,121500.0,0.89551731]
[1752494738320,0.24428451,121490.0,121480.0,0.077]
[1752494738538,0.25251523,121490.0,121480.0,0.87027798]
[1752494738759,0.25251523,121490.0,121480.0,0.40159798]
[1752494738974,0.25251523,121490.0,121480.0,0.87027798]
[1752494739202,0.24428451,121490.0,121480.0,0.002]
[1752494739415,0.24428451,121490.0,121480.0,0.32659798]
[1752494739643,0.24428451,121490.0,121480.0,0.13068]
[1752494739846,0.24428451,121490.0,121480.0,0.20568]
[1752494739997,0.24328451,121490.0,121480.0,0.20568]
[1752494740210,0.24328451,121490.0,121480.0,0.54568]
[1752494740421,0.24328451,121490.0,121480.0,0.47068]
[1752494740615,0.24328451,121490.0,121480.0,0.87027798]
[1752494740844,0.24628451,121490.0,121480.0,0.87027798]
[1752494741054,0.24528451,121490.0,121480.0,0.54568]
[1752494741989,0.24628451,121490.0,121480.0,0.54568]
[1752494743052,0.0652,121490.0,121480.0,0.89895968]
[1752494743278,0.004,121490.0,121480.0,0.92365427]
[1752494743506,0.004,121490.0,121480.0,1.06840138]
[1752494743723,0.004,121490.0,121480.0,1.82118023]
[1752494743937,0.004,121490.0,121480.0,1.94986023]
[1752494744158,0.004,121490.0,121480.0,1.69642823]
[1752494744620,0.05718647,121520.0,121510.0,0.34822977]
[1752494744836,0.05733959,121520.0,121510.0,1.0420585]
[1752494745051,0.05733959,121520.0,121510.0,1.10403983]
[1752494745274,0.06556868,121520.0,121510.0,1.10403983]
[1752494745491,0.05733959,121520.0,121510.0,1.10403983]
[1752494745703,0.05733966,121520.0,121510.0,1.10403983]
[1752494745953,0.05511063,121520.0,121510.0,1.12049883]
[1752494746172,0.00615312,121520.0,121510.0,1.12049802]
[1752494746385,0.00937312,121520.0,121510.0,0.99181802]
[1752494746632,0.00937312,121520.0,121510.0,1.12049802]
[1752494747256,0.01137312,121520.0,121510.0,1.12049802]
[1752494748843,0.01137312,121520.0,121510.0,0.99181802]
[1752494749283,0.01137312,121520.0,121510.0,0.67449449]
[1752494749478,0.01341312,121520.0,121510.0,1.04545802]
[1752494749705,0.01341312,121520.0,121510.0,1.12045802]
[1752494750755,0.01341312,121520.0,121510.0,1.04545802]
[1752494751010,0.01341312,121520.0,121510.0,1.12045802]
[1752494752126,0.01341312,121520.0,121510.0,1.04545802]
[1752494752347,0.01341312,121520.0,121510.0,1.12045802]
[1752494752801,0.01341312,121520.0,121510.0,1.04545802]
[1752494752992,0.01341312,121520.0,121510.0,1.12045802]
[1752494753229,0.01341312,121520.0,121510.0,1.13133391]
[1752494754628,0.02987029,121520.0,121510.0,0.67449449]
[1752494754835,0.02987022,121520.0,121510.0,0.99181802]
[1752494755047,0.0216416,121520.0,121510.0,1.12045802]
[1752494756659,0.01141312,121520.0,121510.0,1.12045802]
[1752494756876,0.01964167,121520.0,121510.0,1.12045802]
[1752494757321,0.01141312,121520.0,121510.0,1.12045802]
[1752494757524,0.01464167,121520.0,121510.0,1.12045802]
[1752494757734,0.01464167,121520.0,121510.0,1.13144279]
[1752494757910,0.01041312,121520.0,121510.0,1.05644279]
[1752494758136,0.01041312,121520.0,121510.0,1.13144279]
[1752494758849,0.0186416,121520.0,121510.0,1.05644279]
[1752494759055,0.0186416,121520.0,121510.0,1.13144279]
[1752494760011,0.0186416,121520.0,121510.0,0.80313449]
[1752494760243,0.01041312,121520.0,121510.0,1.12045802]
[1752494760467,0.01041312,121520.0,121510.0,1.04545802]
[1752494760697,0.01041312,121520.0,121510.0,1.12045802]
[1752494762287,0.01041312,121520.0,121510.0,1.13125924]
[1752494762507,0.01041312,121520.0,121510.0,1.05625924]
[1752494762733,0.02687022,121520.0,121510.0,1.12045802]
[1752494762976,0.0186416,121520.0,121510.0,1.04545802]
[1752494763208,0.03509884,121520.0,121510.0,0.67449449]
[1752494763425,0.0186416,121520.0,121510.0,0.74934279]
[1752494763670,0.01041312,121520.0,121510.0,1.07401026]
[1752494764358,0.00515312,121520.0,121510.0,1.33577773]
[1752494764602,0.00515312,121520.0,121510.0,1.49172071]
[1752494764822,0.00515312,121520.0,121510.0,1.63482156]
[1752494765041,0.00515312,121520.0,121510.0,1.60952569]
[1752494765257,0.00115312,121520.0,121510.0,1.60952569]
[1752494765478,0.00315312,121520.0,121510.0,1.48096569]
[1752494765714,0.00115312,121520.0,121510.0,2.68397926]
[1752494766182,0.00015312,121520.0,121510.0,2.55541926]
[1752494766396,0.00115312,121520.0,121510.0,2.68397926]
[1752494766612,0.00115312,121520.0,121510.0,5.96021226]
[1752494766825,0.00015312,121520.0,121510.0,5.92610026]
[1752494767035,0.00115312,121520.0,121510.0,5.59363454]
[1752494767257,0.00015312,121520.0,121510.0,4.94998754]
[1752494767485,0.00015312,121520.0,121510.0,4.85738254]
[1752494767705,0.00015312,121520.0,121510.0,3.84125854]
[1752494767929,0.00541312,121520.0,121510.0,3.71269854]
[1752494768158,0.00015312,121520.0,121510.0,3.84125854]
[1752494768378,0.00015312,121520.0,121510.0,3.77253354]
[1752494768596,0.00015312,121520.0,121510.0,3.52978054]
[1752494769318,0.00015312,121520.0,121510.0,3.05235754]
[1752494769544,0.00015312,121520.0,121510.0,3.12677854]
[1752494769775,0.00015312,121520.0,121510.0,3.32401854]
[1752494770739,0.00015312,121520.0,121510.0,3.15483854]
[1752494771201,0.00015312,121520.0,121510.0,3.15479854]
[1752494771644,0.00015312,121520.0,121510.0,1.53613454]
[1752494771868,0.00015312,121520.0,121510.0,4.05384954]
[1752494772088,0.00015312,121520.0,121510.0,4.01261154]
[1752494772554,0.00219312,121520.0,121510.0,4.01261154]
[1752494772787,0.00541312,121520.0,121510.0,2.63410554]
[1752494772997,0.00541312,121520.0,121510.0,1.75244254]
[1752494773210,0.00337312,121520.0,121510.0,1.82744254]
[1752494773449,0.00015312,121520.0,121510.0,1.82744254]
[1752494773669,0.00541312,121520.0,121510.0,1.82744254]
[1752494773898,0.00015312,121520.0,121510.0,1.82744254]
[1752494774328,0.00015312,121520.0,121510.0,1.69892254]
[1752494774548,0.00015312,121520.0,121510.0,1.82744254]